bitfinex-derivatives/quotes_SOLF0:USTF0_20220109
["timestamp","ask_amount","ask_price","bid_price","bid_amount"]
[1641750615782,4.0,143.54,143.47,29.40679]
[1641750616082,4.0,143.54,143.47,36.12279]
[1641750616482,4.0,143.53,143.47,36.12279]
[1641750616684,12.54179276,143.55,143.47,34.38079]
[1641750616984,4.0,143.53,143.47,34.38079]
[1641750617183,12.54179276,143.55,143.47,27.66479]
[1641750617983,4.0,143.53,143.47,27.66479]
[1641750618984,5.57315165,143.55,143.47,27.66479]
[1641750619184,9.57315165,143.55,143.47,27.66479]
[1641750619385,4.0,143.5,143.47,27.66479]
[1641750619785,5.57315165,143.55,143.48,3.68980962]
[1641750619986,4.0,143.53,143.48,3.68980962]
[1641750620387,7.95788206,143.53,143.48,3.68980962]
[1641750620785,3.95788206,143.53,143.48,3.68980962]
[1641750621887,4.0,143.52,143.48,3.68980962]
[1641750622088,3.95788206,143.53,143.48,3.68980962]
[1641750622286,4.0,143.52,143.48,3.68980962]
[1641750623690,4.0,143.51,143.48,3.68980962]
[1641750623890,4.0,143.51,143.47,27.66479]
[1641750624290,4.0,143.51,143.49,3.68991881]
[1641750627996,4.0,143.51,143.47,27.66479]
[1641750628201,4.0,143.51,143.48,3.68955945]
[1641750628900,3.95798386,143.5,143.48,3.68955945]
[1641750631805,3.95798386,143.5,143.47,27.66479]
[1641750632204,3.95798386,143.5,143.48,27.66479]
[1641750632707,5.57352813,143.54,143.48,27.66479]
[1641750633107,3.9581792,143.49,143.48,27.66479]
[1641750633707,3.9581792,143.49,143.48,30.20666678]
[1641750635613,3.9581792,143.49,143.48,27.66479]
[1641750636211,7.9581792,143.49,143.48,27.66479]
[1641750636614,4.0,143.49,143.48,27.66479]
[1641750638413,4.0,143.49,143.44,27.66479]
[1641750638814,5.57528707,143.5,143.45,2.54657473]
[1641750639014,4.0,143.46,143.45,2.54657473]
[1641750639814,4.0,143.46,143.44,27.66479]
[1641750640213,14.75653349,143.51,143.44,27.66479]
[1641750640418,4.0,143.5,143.44,34.16779]
[1641750640615,3.95846365,143.49,143.45,2.54766865]
[1641750642013,3.95846365,143.49,143.45,4.28966865]
[1641750642414,3.95846365,143.49,143.48,27.66479]
[1641750643314,3.95846365,143.49,143.45,4.28966865]
[1641750643514,4.0,143.47,143.45,1.742]
[1641750643713,4.0,143.47,143.44,42.42132349]
[1641750644113,5.57461814,143.51,143.46,2.5472358]
[1641750644315,4.0,143.48,143.46,2.5472358]
[1641750644513,7.95865469,143.48,143.46,2.5472358]
[1641750644713,3.95865469,143.48,143.46,2.5472358]
[1641750644913,3.95865469,143.48,143.45,2.5472358]
[1641750645814,7.95865469,143.48,143.45,2.5472358]
[1641750646114,3.95865469,143.48,143.45,2.5472358]
[1641750648317,4.0,143.5,143.45,2.5472358]
[1641750648615,3.95876029,143.47,143.45,8.4212358]
[1641750648815,4.0,143.52,143.46,1.742]
[1641750649516,6.96888393,143.54,143.46,1.742]
[1641750649916,6.96888393,143.54,143.47,2.5472358]
[1641750650317,6.96888393,143.54,143.51,27.66479]
[1641750650518,2.38864507,143.53,143.51,27.66479]
[1641750650719,2.38864507,143.53,143.49,27.66479]
[1641750651320,4.0,143.51,143.49,27.66479]
[1641750651520,2.38864507,143.53,143.49,27.66479]
[1641750651721,2.38864507,143.53,143.49,36.13379]
[1641750652122,4.0,143.55,143.5,2.54658455]
[1641750652322,4.0,143.55,143.54,27.66479]
[1641750652522,4.0,143.55,143.54,33.86779]
[1641750652722,4.0,143.55,143.54,6.203]
[1641750653531,6.3884045,143.55,143.54,6.203]
[1641750656435,2.3884045,143.55,143.54,6.203]
[1641750656635,14.75653349,143.57,143.54,6.203]
[1641750657335,9.65942872,143.59,143.54,6.203]
[1641750657537,39.46288276,143.6,143.55,1.741]
[1641750657736,18.79554968,143.61,143.55,1.741]
[1641750658337,14.79554968,143.61,143.58,27.66479]
[1641750658535,14.79554968,143.61,143.58,36.31179]
[1641750658737,39.46288276,143.64,143.58,36.31179]
[1641750658936,4.0,143.65,143.58,36.31179]
[1641750659536,9.63279912,143.66,143.58,36.31179]
[1641750659938,46.42497417,143.68,143.58,36.31179]
[1641750660239,6.96209141,143.68,143.58,36.31179]
[1641750660446,4.0,143.65,143.62,27.66479]
[1641750660640,4.0,143.67,143.62,36.53679]
[1641750660940,6.96209141,143.68,143.62,36.53679]
[1641750661140,4.0,143.67,143.62,36.53679]
[1641750661340,6.6814751,143.69,143.62,36.53679]
[1641750661539,4.0,143.67,143.62,36.53679]
[1641750661739,6.6814751,143.69,143.62,36.53679]
[1641750661939,6.96015312,143.72,143.62,36.53679]
[1641750661940,4.0,143.68,143.62,36.53679]
[1641750662240,16.52680821,143.72,143.62,36.53679]
[1641750662541,4.0,143.67,143.65,27.66479]
[1641750662742,12.52680821,143.72,143.65,27.66479]
[1641750663143,4.0,143.68,143.65,27.66479]
[1641750665644,27.66479,143.74,143.65,27.66479]
[1641750665846,4.0,143.71,143.65,35.16779]
[1641750666145,17.63721222,143.75,143.65,35.16779]
[1641750666349,17.63721222,143.75,143.68,27.66479]
[1641750667046,4.0,143.71,143.68,27.66479]
[1641750667246,10.67851211,143.75,143.68,27.66479]
[1641750667646,6.67851211,143.75,143.68,27.66479]
[1641750667847,4.0,143.71,143.68,27.66479]
[1641750668047,27.66479,143.76,143.68,27.66479]
[1641750668249,4.0,143.73,143.68,27.66479]
[1641750668447,4.0,143.73,143.68,55.32958]
[1641750670050,27.66479,143.76,143.68,55.32958]
[1641750670248,27.66479,143.76,143.68,63.52058]
[1641750671050,4.0,143.73,143.68,63.52058]
[1641750672752,4.0,143.74,143.68,63.52058]
[1641750672952,4.0,143.69,143.68,55.32958]
[1641750673152,4.0,143.71,143.68,55.32958]
[1641750673353,4.0,143.71,143.68,61.36858]
[1641750673652,4.0,143.75,143.68,61.36858]
[1641750673854,4.0,143.69,143.68,61.36858]
[1641750675657,4.0,143.69,143.68,33.70379]
[1641750675857,4.0,143.69,143.68,27.66479]
[1641750676058,4.0,143.69,143.65,1.739]
[1641750676258,9.56671008,143.72,143.64,58.5948]
[1641750676457,4.0,143.66,143.65,27.66479]
[1641750677359,4.0,143.69,143.65,27.66479]
[1641750677559,4.0,143.7,143.65,35.16379]
[1641750677758,4.0,143.69,143.65,35.16379]
[1641750677959,4.0,143.72,143.65,35.16379]
[1641750678158,4.0,143.67,143.65,35.16379]
[1641750678358,9.56689992,143.71,143.65,35.16379]
[1641750678759,4.0,143.66,143.65,35.16379]
[1641750679060,10.67939599,143.73,143.65,35.16379]
[1641750679262,4.0,143.69,143.65,35.16379]
[1641750679459,6.67939599,143.73,143.65,35.16379]
[1641750679660,4.0,143.69,143.65,35.16379]
[1641750679858,10.67939599,143.73,143.65,35.16379]
[1641750680061,3.03634854,143.66,143.65,35.16379]
[1641750681662,7.03634854,143.66,143.65,35.16379]
[1641750682064,3.03634854,143.66,143.65,35.16379]
[1641750682665,7.03634854,143.66,143.65,35.16379]
[1641750682866,4.0,143.66,143.65,27.66479]
[1641750683467,4.0,143.66,143.59,1.74]
[1641750683666,4.0,143.66,143.57,78.9934]
[1641750683867,4.0,143.64,143.57,78.9934]
[1641750684471,4.0,143.64,143.62,27.66479]
[1641750685270,3.03564506,143.66,143.62,27.66479]
[1641750685470,3.03564506,143.66,143.63,1.74]
[1641750686470,3.03564506,143.66,143.65,27.66479]
[1641750686669,3.03564506,143.66,143.62,27.66479]
[1641750687370,4.0,143.71,143.62,27.66479]
[1641750687570,3.03524654,143.65,143.62,27.66479]
[1641750688272,3.03524654,143.65,143.64,3.95355143]
[1641750688472,7.03524654,143.65,143.64,3.95355143]
[1641750689374,3.03524654,143.65,143.64,3.95355143]
[1641750689973,4.0,143.67,143.64,3.95355143]
[1641750690174,20.33723488,143.72,143.64,3.95355143]
[1641750690573,4.0,143.67,143.65,27.66479]
[1641750691474,4.0,143.7,143.65,27.66479]
[1641750691675,14.77082129,143.72,143.65,27.66479]
[1641750691973,18.77082129,143.72,143.66,1.739]
[1641750692173,4.0,143.72,143.66,8.408]
[1641750692574,18.77082129,143.74,143.7,27.66479]
[1641750692776,18.77082129,143.74,143.7,34.78679]
[1641750693476,4.0,143.74,143.7,34.78679]
[1641750695881,21.7295214,143.75,143.68,1.739]
[1641750696082,4.0,143.69,143.66,3.95303001]
[1641750696282,4.0,143.67,143.66,3.95303001]
[1641750697585,8.0,143.67,143.61,39.46288276]
[1641750697785,4.0,143.62,143.59,14.78149616]
[1641750697987,4.0,143.6,143.59,14.78149616]
[1641750698788,4.0,143.61,143.59,14.78149616]
[1641750698988,4.0,143.63,143.59,9.462]
[1641750699390,4.0,143.62,143.59,9.462]
[1641750699591,4.0,143.6,143.59,9.462]
[1641750699791,4.0,143.6,143.58,4.28292835]
[1641750699792,4.0,143.6,143.58,2.54292835]
[1641750700094,13.254,143.64,143.58,2.54292835]
[1641750700293,4.0,143.59,143.58,2.54292835]
[1641750700492,4.0,143.59,143.57,10.06620615]
[1641750700693,6.96403078,143.64,143.56,27.66479]
[1641750701093,4.0,143.59,143.56,27.66479]
[1641750702093,33.23408991,143.65,143.56,27.66479]
[1641750702292,33.23408991,143.65,143.6,3.95462705]
[1641750702494,4.0,143.61,143.6,3.95462705]
[1641750705501,4.0,143.61,143.56,27.66479]
[1641750705800,4.0,143.63,143.6,3.9549486]
[1641750706000,4.0,143.61,143.6,3.9549486]
[1641750706201,18.95022142,143.61,143.56,27.66479]
[1641750706401,4.0,143.58,143.56,27.66479]
[1641750706600,11.787,143.58,143.51,39.46288276]
[1641750706802,7.787,143.58,143.5,39.46288276]
[1641750707002,4.0,143.54,143.5,39.46288276]
[1641750707200,7.246,143.54,143.5,39.46288276]
[1641750707805,7.246,143.54,143.5,10.04420656]
[1641750708803,4.0,143.52,143.5,10.04420656]
[1641750709006,4.0,143.55,143.5,10.04420656]
[1641750709204,4.0,143.55,143.5,18.19820656]
[1641750709403,4.0,143.57,143.5,18.19820656]
[1641750709603,4.0,143.57,143.51,1.741]
[1641750710003,38.30545288,143.61,143.51,1.741]
[1641750710004,4.0,143.54,143.51,1.741]
[1641750710206,4.0,143.54,143.5,1.741]
[1641750710408,4.0,143.52,143.5,1.741]
[1641750710609,4.0,143.52,143.49,27.66479]
[1641750710811,4.0,143.52,143.5,10.03351131]
[1641750711010,13.327,143.57,143.5,10.03351131]
[1641750711210,4.0,143.54,143.5,10.03351131]
[1641750711408,4.0,143.54,143.49,27.66479]
[1641750711810,9.327,143.57,143.49,27.66479]
[1641750712011,5.57210079,143.58,143.5,1.741]
[1641750712212,4.0,143.57,143.5,1.741]
[1641750712410,4.0,143.57,143.5,9.989]
[1641750712611,4.0,143.55,143.54,27.66479]
[1641750713012,3.9559161,143.56,143.54,27.66479]
[1641750713210,7.9559161,143.56,143.54,27.66479]
[1641750713412,3.9559161,143.56,143.54,27.66479]
[1641750713609,7.9559161,143.56,143.54,27.66479]
[1641750713810,3.9559161,143.56,143.5,21.741]
[1641750714610,3.9559161,143.56,143.55,27.66479]
[1641750714811,7.9559161,143.56,143.55,27.66479]
[1641750715010,3.9559161,143.56,143.55,27.66479]
[1641750715212,33.2346188,143.64,143.55,27.66479]
[1641750715412,4.0,143.62,143.55,27.66479]
[1641750715613,4.0,143.56,143.54,53.6853]
[1641750715812,17.00958492,143.62,143.51,58.58378443]
[1641750716112,4.0,143.56,143.52,52.8048]
[1641750716416,3.9559652,143.55,143.52,4.27279407]
[1641750716611,3.9559652,143.55,143.54,27.66479]
[1641750717611,5.57058492,143.62,143.54,30.19658407]
[1641750717812,4.0,143.58,143.54,30.19658407]
[1641750718012,5.57058492,143.62,143.54,30.19658407]
[1641750718213,4.0,143.58,143.54,30.19658407]
[1641750718412,4.0,143.57,143.54,27.66479]
[1641750718611,4.0,143.59,143.54,27.66479]
[1641750718812,4.0,143.59,143.54,55.32958]
[1641750719011,5.57058492,143.62,143.54,55.32958]
[1641750719412,4.0,143.58,143.54,55.32958]
[1641750719814,9.57058492,143.62,143.54,55.32958]
[1641750720014,4.0,143.59,143.55,2.53326058]
[1641750720216,4.0,143.68,143.55,10.14026058]
[1641750720414,4.0,143.68,143.56,1.74]
[1641750720614,4.0,143.62,143.56,1.74]
[1641750720816,4.0,143.62,143.6,27.66479]
[1641750721218,8.0161751,143.71,143.6,27.66479]
[1641750721417,38.34381547,143.74,143.6,27.66479]
[1641750721619,27.66479,143.74,143.62,20.0]
[1641750721818,4.0,143.7,143.63,52.744]
[1641750722219,10.95894224,143.75,143.65,20.0]
[1641750722220,6.95894224,143.75,143.65,20.0]
[1641750722419,4.0,143.73,143.66,1.739]
[1641750722818,6.95894224,143.75,143.7,27.66479]
[1641750723020,6.95894224,143.75,143.7,34.51179]
[1641750723621,4.0,143.75,143.7,34.51179]
[1641750723822,4.0,143.77,143.71,1.739]
[1641750724022,4.0,143.75,143.71,1.739]
[1641750724225,4.0,143.79,143.71,1.739]
[1641750724423,4.0,143.75,143.71,1.739]
[1641750724824,43.46288276,143.81,143.73,27.66479]
[1641750725025,4.0,143.77,143.73,36.55279]
[1641750725926,4.0,143.8,143.73,36.55279]
[1641750726324,4.0,143.77,143.73,36.55279]
[1641750726525,4.0,143.78,143.73,36.55279]
[1641750726724,4.0,143.79,143.76,27.66479]
[1641750726925,27.66479,143.84,143.76,34.42079]
[1641750727325,4.0,143.79,143.76,34.42079]
[1641750729530,4.0,143.81,143.76,34.42079]
[1641750730730,4.0,143.85,143.76,62.08558]
[1641750731130,4.0,143.81,143.76,63.82358]
[1641750731529,4.0,143.85,143.76,63.82358]
[1641750731729,4.0,143.85,143.76,62.08558]
[1641750732130,4.0,143.85,143.77,3.95059517]
[1641750732330,4.0,143.8,143.77,3.95059517]
[1641750732729,4.0,143.78,143.77,3.95059517]
[1641750733130,4.0,143.8,143.77,3.95059517]
[1641750733733,4.0,143.84,143.77,3.95059517]
[1641750734531,4.0,143.85,143.77,12.91059517]
[1641750734732,4.0,143.82,143.8,27.66479]
[1641750734932,4.0,143.81,143.8,36.58779]
[1641750735533,4.0,143.81,143.8,8.923]
[1641750736234,4.0,143.81,143.77,8.96]
[1641750736433,4.0,143.81,143.77,12.91040945]
[1641750736634,4.0,143.8,143.77,12.91040945]
[1641750737633,4.0,143.78,143.77,3.95040945]
[1641750738233,4.0,143.78,143.77,9.45e-06]
[1641750738434,13.56414852,143.78,143.69,1.738]
[1641750738633,4.0,143.77,143.68,50.1304]
[1641750738834,4.0,143.72,143.68,50.1304]
[1641750739033,4.0,143.72,143.69,27.66479]
[1641750739833,4.0,143.73,143.69,27.66479]
[1641750740935,4.0,143.77,143.69,27.66479]
[1641750741135,4.0,143.72,143.69,27.66479]
[1641750741535,7.0319029,143.78,143.69,27.66479]
[1641750742434,7.0319029,143.78,143.7,1.739]
[1641750742634,3.0319029,143.78,143.7,1.739]
[1641750743036,3.0319029,143.78,143.74,27.66479]
[1641750743737,4.0,143.76,143.74,27.66479]
[1641750743941,3.0319029,143.78,143.74,27.66479]
[1641750744336,13.342,143.8,143.74,27.66479]
[1641750744536,4.0,143.76,143.74,27.66479]
[1641750744737,31.66479,143.82,143.74,27.66479]
[1641750745139,4.0,143.77,143.74,27.66479]
[1641750745338,4.0,143.81,143.74,27.66479]
[1641750745538,4.0,143.75,143.74,27.66479]
[1641750746140,12.704,143.75,143.69,29.40379]
[1641750746444,4.0,143.72,143.68,1.739]
[1641750746641,4.0,143.71,143.65,65.1845502]
[1641750746840,4.0,143.66,143.65,14.6540502]
[1641750747040,10.197,143.66,143.65,14.6540502]
[1641750747642,10.197,143.66,143.6,44.0588402]
[1641750747842,4.0,143.64,143.6,42.3188402]
[1641750748042,6.197,143.66,143.6,42.3188402]
[1641750748343,17.63743333,143.75,143.6,42.3188402]
[1641750748541,10.95894224,143.75,143.61,1.74]
[1641750748743,4.0,143.69,143.61,4.26508097]
[1641750748942,4.0,143.73,143.61,4.26508097]
[1641750749142,4.0,143.68,143.65,27.66479]
[1641750749845,4.0,143.66,143.62,2.52508097]
[1641750750042,11.161,143.7,143.62,2.52508097]
[1641750750242,4.0,143.69,143.62,2.52508097]
[1641750750543,4.0,143.63,143.62,2.52508097]
[1641750750742,12.265,143.64,143.61,2.52508097]
[1641750750945,7.161,143.7,143.61,2.52508097]
[1641750751342,4.0,143.66,143.61,2.52508097]
[1641750751545,4.0,143.66,143.62,14.6540502]
[1641750751943,7.161,143.7,143.62,14.6540502]
[1641750752144,4.0,143.65,143.62,14.6540502]
[1641750752346,4.0,143.64,143.62,14.6540502]
[1641750752545,4.0,143.64,143.62,17.17913117]
[1641750752748,4.0,143.63,143.62,17.17913117]
[1641750753649,4.0,143.63,143.61,2.52508097]
[1641750753847,4.0,143.62,143.61,2.52508097]
[1641750754048,10.355,143.62,143.61,2.52508097]
[1641750755750,9.56662428,143.72,143.61,2.52508097]
[1641750755949,4.0,143.66,143.61,8.36708097]
[1641750756150,5.56662428,143.72,143.61,10.10708097]
[1641750756352,4.0,143.65,143.61,10.10708097]
[1641750756552,4.0,143.69,143.61,8.36708097]
[1641750756751,4.0,143.64,143.62,2.52508097]
[1641750757551,4.0,143.64,143.61,2.52508097]
[1641750758152,4.0,143.62,143.61,2.52508097]
[1641750759353,4.0,143.62,143.58,14.6540502]
[1641750759554,8.166,143.64,143.57,2.52508097]
[1641750760455,9.56935151,143.65,143.57,2.52508097]
[1641750763358,3.95395368,143.63,143.57,2.52508097]
[1641750764560,4.0,143.62,143.57,2.52508097]
[1641750764760,3.95395368,143.63,143.57,4.26508097]
[1641750765060,7.95395368,143.63,143.57,28.92586212]
[1641750765261,7.95395368,143.63,143.59,20.0]
[1641750765461,46.64011832,143.73,143.61,27.66479]
[1641750765662,27.66479,143.73,143.62,21.74]
[1641750765861,4.0,143.7,143.62,28.054]
[1641750766462,27.66479,143.73,143.62,28.054]
[1641750766662,3.95383139,143.64,143.63,2.52508097]
[1641750766864,3.95383139,143.64,143.63,4.26508097]
[1641750767161,4.0,143.69,143.63,4.26508097]
[1641750767361,27.66479,143.73,143.68,27.66479]
[1641750767563,4.0,143.7,143.68,27.66479]
[1641750767961,4.0,143.76,143.68,27.66479]
[1641750768161,4.0,143.76,143.68,34.63379]
[1641750768461,4.0,143.71,143.68,34.63379]
[1641750769863,4.0,143.75,143.68,34.63379]
[1641750770064,4.0,143.69,143.68,27.66479]
[1641750770865,4.0,143.71,143.68,27.66479]
[1641750771464,4.0,143.71,143.69,3.95230752]
[1641750772267,4.0,143.71,143.69,13.34930752]
[1641750773068,5.84587864,143.75,143.69,13.34930752]
[1641750773468,5.84587864,143.75,143.69,3.95230752]
[1641750773669,4.0,143.71,143.69,3.95230752]
[1641750774068,4.0,143.7,143.69,3.95230752]
[1641750774269,1.84587864,143.75,143.69,3.95230752]
[1641750774672,1.84587864,143.75,143.68,27.66479]
[1641750774870,4.0,143.72,143.68,27.66479]
[1641750775068,4.0,143.76,143.7,3.95214536]
[1641750775269,4.0,143.71,143.7,3.95214536]
[1641750777372,16.52252771,143.77,143.7,3.95214536]
[1641750777973,4.0,143.73,143.7,3.95214536]
[1641750778174,4.0,143.74,143.7,3.95214536]
[1641750778374,4.0,143.74,143.69,1.739]
[1641750778574,4.0,143.77,143.69,5.69109838]
[1641750778776,4.0,143.77,143.71,2.53512125]
[1641750778974,4.0,143.77,143.72,1.739]
[1641750779173,4.0,143.77,143.72,8.604]
[1641750779675,4.0,143.75,143.72,8.604]
[1641750779874,4.0,143.75,143.74,27.66479]
[1641750781477,4.0,143.75,143.74,30.19893576]
[1641750781875,4.0,143.75,143.74,2.53414576]
[1641750782277,4.0,143.75,143.72,3.95078178]
[1641750782475,4.0,143.74,143.72,3.95078178]
[1641750783078,4.0,143.78,143.72,3.95078178]
[1641750783277,4.0,143.75,143.72,3.95078178]
[1641750783777,4.0,143.75,143.72,31.61557178]
[1641750783978,9.56379761,143.79,143.72,31.61557178]
[1641750785484,9.56379761,143.79,143.72,27.66479]
[1641750785781,4.0,143.78,143.74,3.95127195]
[1641750785981,11.32,143.78,143.74,3.95127195]
[1641750786187,4.0,143.75,143.74,3.95127195]
[1641750788986,4.0,143.75,143.73,3.95119809]
[1641750789386,4.0,143.77,143.73,3.95119809]
[1641750789786,4.0,143.74,143.73,3.95119809]
[1641750791089,10.111,143.74,143.73,3.95119809]
[1641750791789,14.111,143.74,143.73,3.95119809]
[1641750791989,10.111,143.74,143.73,3.95119809]
[1641750792390,10.111,143.74,143.68,27.66479]
[1641750793292,4.0,143.69,143.68,27.66479]
[1641750794392,4.0,143.69,143.68,30.20076651]
[1641750795392,10.529,143.69,143.68,2.53597651]
[1641750796194,10.529,143.69,143.66,2.53597651]
[1641750796393,4.0,143.67,143.66,2.53597651]
[1641750796594,8.0,143.67,143.66,2.53597651]
[1641750796793,13.5683539,143.67,143.66,7.651e-05]
[1641750797195,13.5683539,143.67,143.65,14.6540502]
[1641750797398,8.0,143.66,143.63,24.8231075]
[1641750797595,4.0,143.64,143.63,24.8231075]
[1641750797798,8.0,143.64,143.63,24.8231075]
[1641750798496,8.0,143.64,143.56,79.78859]
[1641750798497,8.0,143.64,143.57,64.52321862]
[1641750798897,4.0,143.58,143.57,64.52321862]
[1641750799297,4.0,143.6,143.57,64.52321862]
[1641750799496,27.66479,143.66,143.57,114.64421862]
[1641750799695,4.0,143.62,143.57,109.99164755]
[1641750799898,4.0,143.66,143.57,70.52876479]
[1641750800098,5.84677853,143.69,143.58,10.05576479]
[1641750800300,4.0,143.65,143.58,10.05576479]
[1641750800498,4.0,143.65,143.59,1.74]
[1641750800797,1.84677853,143.69,143.59,1.74]
[1641750801198,4.0,143.67,143.59,41.20288276]
[1641750801799,1.84677853,143.69,143.59,41.20288276]
[1641750802000,5.84677853,143.69,143.59,41.20288276]
[1641750802199,5.84677853,143.69,143.6,27.66479]
[1641750802400,4.0,143.69,143.6,27.66479]
[1641750803602,4.0,143.69,143.6,37.72055479]
[1641750803802,1.84729963,143.68,143.6,37.72055479]
[1641750804302,1.84729963,143.68,143.6,65.38534479]
[1641750804703,5.84729963,143.68,143.61,10.05576479]
[1641750804904,1.84729963,143.68,143.61,10.05576479]
[1641750805304,1.84729963,143.68,143.62,1.74]
[1641750805803,5.84729963,143.68,143.61,1.74]
[1641750806205,5.84729963,143.68,143.66,27.66479]
[1641750807205,4.0,143.68,143.66,27.66479]
[1641750807407,1.84732803,143.67,143.66,27.66479]
[1641750808006,2.803e-05,143.67,143.66,27.66479]
[1641750808205,37.23058536,143.74,143.66,27.66479]
[1641750808505,4.0,143.7,143.66,27.66479]
[1641750808705,4.0,143.73,143.66,27.66479]
[1641750808905,4.0,143.74,143.67,1.739]
[1641750809105,4.0,143.75,143.67,1.739]
[1641750809306,4.0,143.75,143.67,7.30715159]
[1641750809707,4.0,143.75,143.67,58.60035159]
[1641750809907,4.0,143.77,143.71,26.95313586]
[1641750810107,4.0,143.81,143.76,55.32958]
[1641750810316,4.0,143.81,143.76,61.09758]
[1641750810508,6.95458655,143.84,143.76,61.09758]
[1641750810806,4.0,143.86,143.76,61.09758]
[1641750811407,4.0,143.81,143.76,61.09758]
[1641750811608,4.0,143.81,143.77,1.738]
[1641750812010,4.0,143.79,143.77,1.738]
[1641750812209,4.0,143.81,143.77,1.738]
[1641750812410,4.0,143.81,143.76,57.06758]
[1641750812811,4.0,143.8,143.76,57.06758]
[1641750813010,4.0,143.8,143.76,55.32958]
[1641750813610,4.0,143.77,143.76,55.32958]
[1641750814709,4.0,143.78,143.76,55.32958]
[1641750814911,1.47566997,143.8,143.76,55.32958]
[1641750815109,1.47566997,143.8,143.76,61.82758]
[1641750815312,1.47566997,143.8,143.78,3.9492725]
[1641750815616,5.47566997,143.8,143.78,3.9492725]
[1641750816613,4.0,143.79,143.78,3.9492725]
[1641750818414,11.804,143.79,143.78,3.9492725]
[1641750818618,13.09511387,143.79,143.78,3.9492725]
[1641750818816,13.09511387,143.79,143.76,27.66479]
[1641750819017,1.29111387,143.79,143.76,27.66479]
[1641750819218,4.0,143.78,143.76,27.66479]
[1641750819818,1.29111387,143.79,143.76,27.66479]
[1641750820119,4.0,143.77,143.76,27.66479]
[1641750820322,12.94,143.77,143.72,27.66479]
[1641750820519,4.0,143.73,143.67,39.46288276]
[1641750820719,4.0,143.68,143.67,39.46288276]
[1641750820920,13.314,143.68,143.67,39.46288276]
[1641750821522,13.314,143.68,143.61,53.3421]
[1641750821720,4.0,143.65,143.61,53.3421]
[1641750822121,4.0,143.65,143.6,39.46288276]
[1641750822324,4.0,143.65,143.63,27.66479]
[1641750822623,9.56670462,143.72,143.63,27.66479]
[1641750822924,5.56670462,143.72,143.63,27.66479]
[1641750823121,9.56670462,143.72,143.63,27.66479]
[1641750823323,4.0,143.71,143.63,27.66479]
[1641750823722,5.56670462,143.72,143.63,27.66479]
[1641750823922,27.83770618,143.77,143.63,31.66479]
[1641750823923,4.0,143.75,143.63,31.66479]
[1641750824124,4.0,143.74,143.64,1.739]
[1641750824325,4.0,143.74,143.67,27.66479]
[1641750824826,27.66479,143.76,143.67,27.66479]
[1641750825024,4.0,143.72,143.67,27.66479]
[1641750825228,4.0,143.75,143.67,27.66479]
[1641750825827,4.0,143.74,143.67,27.66479]
[1641750826028,4.0,143.73,143.67,27.66479]
[1641750826429,1.29270955,143.71,143.67,27.66479]
[1641750829032,1.29270955,143.71,143.67,31.66479]
[1641750829233,1.29270955,143.71,143.68,1.739]
[1641750829432,1.29270955,143.71,143.68,8.031]
[1641750830033,34.62227974,143.78,143.68,8.031]
[1641750830235,31.66479,143.78,143.68,8.031]
[1641750830436,31.66479,143.78,143.7,27.66479]
[1641750832137,5.56351426,143.8,143.7,27.66479]
[1641750832338,5.56351426,143.8,143.71,1.739]
[1641750832539,9.56351426,143.8,143.7,55.32958]
[1641750832738,5.56351426,143.8,143.7,55.32958]
[1641750833643,4.0,143.79,143.7,55.32958]